bitfinex/quotes_SOLUSD_20250930
["timestamp","ask_amount","ask_price","bid_price","bid_amount"]
[1759238788111,5.57894852,208.38,208.35,15.25225262]
[1759238788305,4.89894852,208.38,208.35,15.25225262]
[1759238788626,0.1,208.38,208.33,13.59559401]
[1759238788808,0.68,208.37,208.36,1.65665861]
[1759238789221,0.68,208.37,208.35,13.59559401]
[1759238789551,2.33665861,208.36,208.33,13.59559401]
[1759238789717,1.65665861,208.34,208.3,13.59559401]
[1759238790023,16.79705865,208.37,208.3,13.59559401]
[1759238790024,1.65665861,208.32,208.3,13.59559401]
[1759238790212,0.68,208.31,208.3,13.59559401]
[1759238790810,0.68,208.31,208.28,34.56]
[1759238791006,0.68,208.3,208.29,13.59559401]
[1759238791614,3.33354021,208.38,208.29,13.59559401]
[1759238791929,5.47915534,208.37,208.29,1.65665861]
[1759238792107,1.65665861,208.35,208.29,1.65665861]
[1759238792308,0.68,208.34,208.29,1.65665861]
[1759238792522,0.68,208.33,208.29,1.65665861]
[1759238792926,5.48038371,208.32,208.27,13.59559401]
[1759238793128,0.68,208.31,208.28,1.65665861]
[1759238793829,4.80038371,208.32,208.28,1.65665861]
[1759238794017,0.68,208.34,208.31,13.59559401]
[1759238794220,0.68,208.33,208.31,13.59559401]
[1759238794419,0.68,208.32,208.3,13.59559401]
[1759238794927,0.68,208.32,208.28,1.65665861]
[1759238795128,5.48049261,208.32,208.28,1.65665861]
[1759238795323,11.99944452,208.35,208.28,1.65665861]
[1759238795324,0.68,208.35,208.3,1.65665861]
[1759238795526,0.68,208.34,208.31,1.65665861]
[1759238795727,0.68,208.34,208.32,13.59559401]
[1759238796126,0.68,208.33,208.31,13.59559401]
[1759238796326,0.68,208.34,208.31,13.59559401]
[1759238796510,1.65665861,208.35,208.31,13.59559401]
[1759238796829,0.68,208.34,208.31,13.59559401]
[1759238797209,0.1,208.38,208.31,15.25225262]
[1759238797410,0.68,208.36,208.31,15.25225262]
[1759238797618,0.68,208.35,208.31,15.25225262]
[1759238797931,6.45581395,208.37,208.31,15.25225262]
[1759238798122,0.68,208.34,208.31,15.25225262]
[1759238798925,18.45370232,208.37,208.31,15.25225262]
[1759238799436,5.48009289,208.33,208.31,13.59559401]
[1759238799926,4.80009289,208.33,208.31,13.59559401]
[1759238800238,5.48009289,208.33,208.31,13.59559401]
[1759238800410,0.68,208.33,208.31,13.59559401]
[1759238800914,5.47961603,208.35,208.31,15.25225262]
[1759238801235,0.68,208.34,208.31,15.25225262]
[1759238801731,0.68,208.34,208.32,1.65665861]
[1759238801930,4.79961603,208.35,208.31,13.59559401]
[1759238802134,1.65665861,208.32,208.27,13.59559401]
[1759238802317,16.7986561,208.35,208.27,13.59559401]
[1759238802318,1.65665861,208.3,208.27,13.59559401]
[1759238802525,5.4909986,208.29,208.26,13.59559401]
[1759238802732,0.69,208.28,208.26,13.59559401]
[1759238802914,4.8009986,208.29,208.26,13.59559401]
[1759238803109,0.69,208.28,208.26,13.59559401]
[1759238803812,4.8009986,208.29,208.25,13.59559401]
[1759238804012,0.69,208.28,208.25,13.59559401]
[1759238804415,5.49151591,208.27,208.25,13.59559401]
[1759238805440,0.69,208.27,208.25,13.59559401]
[1759238805845,5.49150909,208.27,208.25,13.59559401]
[1759238806645,4.80127654,208.28,208.25,15.25225262]
[1759238807414,5.49127654,208.28,208.25,15.25225262]
[1759238807629,0.69,208.27,208.25,13.59559401]
[1759238807943,0.69,208.26,208.22,15.25225262]
[1759238808149,0.69,208.26,208.22,49.77225262]
[1759238808655,5.4918087,208.26,208.22,49.77225262]
[1759238808943,5.4918087,208.26,208.23,1.65665861]
[1759238809318,0.69,208.25,208.23,1.65665861]
[1759238809519,5.49202744,208.25,208.22,48.11559401]
[1759238809719,5.49202744,208.25,208.23,1.65665861]
[1759238809945,0.69,208.24,208.22,15.25225262]
[1759238810137,0.69,208.24,208.22,13.59559401]
[1759238810325,4.80173978,208.26,208.23,1.65665861]
[1759238810528,4.80173978,208.26,208.24,1.65665861]
[1759238811057,5.49173978,208.26,208.24,1.65665861]
[1759238812022,0.69,208.31,208.26,13.59559401]
[1759238812223,0.69,208.3,208.27,2.585505]
[1759238812423,0.69,208.29,208.27,2.585505]
[1759238813848,0.69,208.28,208.25,16.18109901]
[1759238814059,4.80107887,208.29,208.25,16.18109901]
[1759238814060,0.69,208.27,208.25,16.18109901]
[1759238814235,0.69,208.27,208.25,13.59559401]
[1759238814438,0.69,208.26,208.24,34.52]
[1759238815223,0.69,208.26,208.24,37.105505]
[1759238815444,5.49174824,208.26,208.24,37.105505]
[1759238815823,0.69,208.25,208.24,50.70109901]
[1759238816149,4.80174824,208.26,208.24,48.11559401]
[1759238816445,5.49146285,208.27,208.24,48.11559401]
[1759238816940,5.49146285,208.27,208.24,50.70109901]
[1759238817137,0.69,208.27,208.24,50.70109901]
[1759238817940,4.80097621,208.3,208.26,2.585505]
[1759238818146,4.80097621,208.3,208.27,2.585505]
[1759238818332,5.49097621,208.3,208.27,2.585505]
[1759238819574,0.69,208.29,208.26,2.585505]
[1759238820244,0.69,208.29,208.25,13.59559401]
[1759238820545,0.69,208.28,208.25,13.59559401]
[1759238820745,0.69,208.27,208.25,13.59559401]
[1759238821052,0.69,208.29,208.25,16.18109901]
[1759238821249,5.49114455,208.29,208.25,16.18109901]
[1759238821551,0.69,208.28,208.25,16.18109901]
[1759238822421,4.80114455,208.29,208.26,2.585505]
[1759238823046,4.80114455,208.29,208.26,3.155505]
[1759238823241,4.80076812,208.3,208.26,2.585505]
[1759238823447,0.69,208.29,208.22,14.16559401]
[1759238823646,8.01842606,208.3,208.26,13.59559401]
[1759238823848,0.69,208.28,208.26,13.59559401]
[1759238824229,0.69,208.27,208.23,37.085505]
[1759238824434,0.69,208.26,208.18,12.00835406]
[1759238824654,0.69,208.25,208.19,18.39889868]
[1759238824952,0.69,208.25,208.22,13.59559401]
[1759238825158,7.38696375,208.28,208.22,16.18109901]
[1759238825352,0.69,208.27,208.22,16.18109901]
[1759238825662,0.69,208.26,208.22,16.18109901]
[1759238826259,19.39003653,208.28,208.22,16.18109901]
[1759238826552,0.69,208.25,208.21,34.5]
[1759238826728,0.69,208.24,208.21,34.5]
[1759238826928,0.69,208.23,208.21,34.5]
[1759238827348,5.49246379,208.23,208.21,34.5]
[1759238827529,0.69,208.22,208.21,34.5]
[1759238827738,0.69,208.22,208.2,2.585505]
[1759238828137,4.80246379,208.23,208.2,2.585505]
[1759238828535,2.585505,208.21,208.13,13.59559401]
[1759238828753,2.585505,208.21,208.16,16.18109901]
[1759238828754,0.69,208.2,208.16,16.18109901]
[1759238828953,0.69,208.19,208.16,13.59559401]
[1759238829333,4.8035354,208.18,208.15,2.585505]
[1759238829537,0.69,208.19,208.15,2.585505]
[1759238829939,0.69,208.19,208.15,13.59559401]
[1759238830152,8.710539,208.21,208.17,2.585505]
[1759238830459,0.69,208.2,208.17,2.585505]
[1759238831246,4.80266039,208.22,208.18,2.585505]
[1759238831431,0.69,208.21,208.18,2.585505]
[1759238833062,5.4929573,208.21,208.18,2.585505]
[1759238833264,0.72,208.2,208.16,2.585505]
[1759238833650,4.8029573,208.21,208.16,2.585505]
[1759238833855,3.305505,208.19,208.13,2.585505]
[1759238834153,2.585505,208.18,208.13,13.59559401]
[1759238834360,0.72,208.17,208.13,13.59559401]
[1759238835064,0.72,208.17,208.13,2.585505]
[1759238835248,5.52386399,208.17,208.13,2.585505]
[1759238835946,5.52386399,208.17,208.12,20.98598021]
[1759238836148,5.52386399,208.17,208.12,16.18109901]
[1759238836673,5.52386399,208.17,208.1,13.81259401]
[1759238836674,3.305505,208.16,208.1,13.81259401]
[1759238836841,3.305505,208.16,208.1,16.39809901]
[1759238837042,0.72,208.16,208.12,2.585505]
[1759238837260,0.72,208.16,208.12,16.18109901]
[1759238837674,2.585505,208.18,208.12,20.98598405]
[1759238837849,0.7,208.18,208.13,16.18109901]
[1759238838163,0.7,208.17,208.12,7.96039004]
[1759238839049,4.80332634,208.19,208.14,2.585505]
[1759238839254,5.50332634,208.19,208.14,3.155505]
[1759238839570,4.80332634,208.19,208.14,2.585505]
[1759238839749,0.7,208.18,208.14,2.585505]
[1759238841067,15.23511977,208.21,208.14,2.585505]
[1759238841375,4.80307396,208.2,208.15,16.75109901]
[1759238841669,0.7,208.19,208.14,13.59559401]
[1759238841845,0.7,208.18,208.14,13.59559401]
[1759238842048,2.585505,208.19,208.14,13.59559401]
[1759238842049,0.7,208.17,208.14,13.59559401]
[1759238843058,4.80363555,208.18,208.14,13.59559401]
[1759238843457,5.50363555,208.18,208.14,13.59559401]
[1759238844364,0.7,208.17,208.14,13.59559401]
[1759238844774,0.7,208.16,208.14,13.59559401]
[1759238845378,8.08914055,208.18,208.14,13.59559401]
[1759238845877,0.7,208.17,208.14,13.59559401]
[1759238846256,3.285505,208.19,208.14,13.59559401]
[1759238846575,5.50356358,208.18,208.14,13.59559401]
[1759238847278,0.7,208.17,208.14,13.59559401]
[1759238847977,5.50385474,208.17,208.14,13.59559401]
[1759238850782,4.80385474,208.17,208.14,13.59559401]
[1759238850964,4.80385474,208.17,208.11,5.37514565]
[1759238850965,2.585505,208.15,208.12,13.59559401]
[1759238851277,0.7,208.15,208.11,34.46]
[1759238853182,5.50424458,208.15,208.11,34.46]
[1759238855871,0.7,208.14,208.11,34.46]
[1759238856078,4.80424458,208.15,208.11,34.46]
[1759238856382,5.50424458,208.15,208.12,13.59559401]
[1759238856568,0.7,208.14,208.12,13.59559401]
[1759238857173,7.38974958,208.15,208.12,13.59559401]
[1759238857680,0.7,208.14,208.12,13.59559401]
[1759238858201,0.7,208.13,208.12,13.59559401]
[1759238858368,8.08974958,208.15,208.12,13.59559401]
[1759238858695,0.7,208.14,208.12,13.59559401]
[1759238859584,5.50446682,208.14,208.12,13.59559401]
[1759238860188,5.50446682,208.14,208.1,13.81259401]
[1759238860395,2.585505,208.12,208.1,0.217]
[1759238860886,3.285505,208.12,208.1,0.217]
[1759238861476,4.80515112,208.11,208.1,0.217]
[1759238861783,8.09065612,208.11,208.1,0.217]
[1759238863064,5.50515112,208.11,208.1,0.217]
[1759238863270,8.09065612,208.11,208.1,0.217]
[1759238864090,5.50515112,208.11,208.1,0.217]
[1759238864689,8.09065612,208.11,208.1,0.217]
[1759238866292,8.0306295,208.13,208.1,0.217]
[1759238866591,4.80468937,208.13,208.1,0.217]
[1759238866891,23.29785794,208.13,208.1,0.217]
[1759238867184,3.255505,208.12,208.1,0.217]
[1759238867584,3.255505,208.11,208.1,0.217]
[1759238867785,8.06065612,208.11,208.1,0.217]
[1759238867973,7.39045438,208.12,208.1,0.217]
[1759238868670,8.06045438,208.12,208.1,0.217]
[1759238869405,3.255505,208.11,208.1,0.217]
[1759238871093,4.80494938,208.12,208.1,0.217]
[1759238871287,7.39065612,208.11,208.1,0.217]
[1759238873085,4.80515112,208.11,208.1,0.217]
[1759238873275,8.03109125,208.11,208.1,0.217]
[1759238874096,8.70109125,208.11,208.1,0.217]
[1759238874308,10.35924491,208.11,208.1,0.217]
[1759238874479,7.13330478,208.11,208.1,0.217]
[1759238874680,8.03109125,208.11,208.1,0.217]
[1759238874978,8.70109125,208.11,208.1,0.217]
[1759238876006,8.03109125,208.11,208.1,0.217]
[1759238876492,3.22594013,208.11,208.1,0.217]
[1759238876694,3.22594013,208.13,208.1,20.84604581]
[1759238876883,3.22594013,208.15,208.12,13.59559401]
[1759238877205,3.22594013,208.14,208.12,14.16559401]
[1759238877414,3.22594013,208.13,208.12,15.82374767]
[1759238877589,8.0302128,208.15,208.12,15.82374767]
[1759238877792,3.22594013,208.14,208.12,15.82374767]
[1759238877990,3.22594013,208.13,208.12,13.59559401]
[1759238878190,3.22594013,208.14,208.12,13.59559401]
[1759238878409,3.22594013,208.13,208.12,13.59559401]
[1759238878712,3.22594013,208.14,208.12,15.82374767]
[1759238879016,3.22594013,208.13,208.12,15.82374767]
[1759238879192,3.22594013,208.15,208.12,15.82374767]
[1759238879393,3.22594013,208.14,208.12,15.82374767]
[1759238879702,3.22594013,208.13,208.12,15.82374767]
[1759238879909,3.22594013,208.14,208.12,15.25374767]
[1759238880206,3.22594013,208.13,208.11,13.59559401]
[1759238880393,3.23280576,208.13,208.1,15.47074767]
[1759238880580,2.32815366,208.16,208.1,15.47074767]
[1759238880581,3.23280576,208.15,208.11,7.03327208]
[1759238880787,3.23280576,208.14,208.11,7.03327208]
[1759238880993,3.23247487,208.15,208.1,20.27607829]
[1759238881193,3.23265319,208.14,208.1,20.84607829]
[1759238881488,3.23265319,208.14,208.1,16.04074767]
[1759238881689,0.67,208.14,208.1,13.81259401]
[1759238881882,3.90292008,208.13,208.1,13.81259401]
[1759238882083,1.65815366,208.11,208.1,0.217]
[1759238882303,0.67,208.12,208.1,0.217]
[1759238882500,2.32815366,208.12,208.1,0.217]
[1759238882804,4.80515112,208.11,208.1,0.217]
[1759238882987,7.13330478,208.11,208.1,0.217]
[1759238883198,10.36683574,208.11,208.1,0.217]
[1759238884286,31.16683574,208.11,208.1,1e-08]
[1759238884907,45.62362199,208.11,208.1,1e-08]
[1759238885114,80.02362199,208.11,208.1,1e-08]
[1759238885788,20.8,208.08,208.03,0.2]
[1759238885991,1.65815366,208.04,208.03,0.2]
[1759238886390,2.32815366,208.04,208.03,0.2]
[1759238886713,7.13492158,208.04,208.03,0.2]
[1759238888100,3.23353096,208.06,208.03,0.2]
[1759238888505,3.90353096,208.06,208.03,0.2]
[1759238888700,4.80664016,208.05,208.03,0.2]
[1759238890093,8.03986718,208.06,208.03,0.2]
[1759238890708,8.70986718,208.06,208.03,0.2]
[1759238890941,3.23353096,208.06,208.05,13.59559401]
[1759238891217,4.80587225,208.08,208.05,13.59559401]
[1759238892090,5.47587225,208.08,208.04,13.59559401]
[1759238893012,5.4861811,208.07,208.04,13.59559401]
[1759238893215,4.8061811,208.07,208.04,13.59559401]
[1759238893922,4.8061811,208.07,208.03,1.85815366]
[1759238893923,0.68,208.06,208.03,0.2]
[1759238894105,0.68,208.06,208.03,13.79559401]
[1759238894298,0.68,208.06,208.03,19.96919401]
[1759238894817,4.8061811,208.07,208.03,19.96919401]
[1759238894994,5.4861811,208.07,208.03,19.96919401]
[1759238896621,5.48645233,208.06,208.03,19.96919401]
[1759238897794,4.80645233,208.06,208.03,19.96919401]
[1759238897995,5.50645233,208.06,208.03,19.96919401]
[1759238898209,0.7,208.05,208.03,19.96919401]
[1759238898420,2.35815366,208.05,208.03,19.96919401]
[1759238898620,1.65815366,208.04,208.03,6.3736]
[1759238898824,2.35815366,208.04,208.03,6.3736]
[1759238899835,0.7,208.04,208.03,6.3736]
[1759238900405,3.23353096,208.05,208.03,6.9436]
[1759238900727,3.23353096,208.08,208.04,15.82374767]
[1759238900904,4.80515112,208.11,208.07,13.59559401]
[1759238901104,3.23223699,208.1,208.07,13.59559401]
[1759238901304,3.23223699,208.09,208.07,13.59559401]
[1759238901521,3.23223699,208.08,208.07,14.16559401]
[1759238901733,3.23223699,208.1,208.07,14.16559401]
[1759238901933,3.23223699,208.09,208.07,14.16559401]
[1759238902118,4.80515112,208.11,208.07,14.16559401]
[1759238902429,3.23265364,208.1,208.09,13.59559401]
[1759238902629,3.23265364,208.1,208.07,1.65815366]
[1759238902832,3.23265364,208.09,208.06,1.65815366]
[1759238903125,3.23265364,208.09,208.05,13.59559401]
[1759238903126,6.46330478,208.11,208.05,15.25374767]
[1759238903331,3.93333863,208.1,208.05,49.63374767]
[1759238903527,6.46330478,208.11,208.05,49.63374767]
[1759238903528,3.93333863,208.09,208.05,15.25374767]
[1759238903714,3.93333863,208.08,208.04,15.25374767]
[1759238903914,2.35815366,208.08,208.04,47.97559401]
[1759238904123,4.80630587,208.06,208.04,13.59559401]
[1759238904430,4.80606544,208.08,208.04,15.82374767]
[1759238904733,3.23523304,208.07,208.04,15.82374767]
[1759238904926,4.80606544,208.08,208.04,15.25374767]
[1759238905124,3.23523207,208.07,208.04,15.25374767]
[1759238905309,3.23614387,208.06,208.04,15.82374767]
[1759238905505,4.80566027,208.09,208.05,0.57]
[1759238905710,3.23614241,208.08,208.05,0.57]
[1759238905911,3.23614241,208.07,208.04,15.25374767]
[1759238906119,3.23614241,208.06,208.04,20.63050614]
[1759238906320,5.50566027,208.09,208.04,20.63050614]
[1759238906618,3.2365398,208.08,208.04,20.63050614]
[1759238906931,3.2365398,208.07,208.05,0.57]
[1759238907138,3.2365398,208.06,208.05,0.57]
[1759238907636,4.80542597,208.1,208.05,2.22815366]
[1759238907838,3.23652355,208.09,208.07,13.59559401]
[1759238908025,3.23652355,208.08,208.07,13.59559401]
[1759238909226,3.23652355,208.08,208.06,13.59559401]
[1759238909428,3.23652355,208.07,208.06,15.25374767]
[1759238909839,3.23652355,208.07,208.06,13.59559401]
[1759238910028,3.23652355,208.07,208.05,13.59559401]
[1759238910218,0.7,208.1,208.07,13.59559401]
[1759238910423,3.23665675,208.09,208.07,13.59559401]
[1759238910625,3.23665675,208.08,208.07,13.59559401]
[1759238912828,0.7,208.16,208.07,15.82374767]
[1759238913029,3.23579125,208.15,208.12,1.65815366]
[1759238913230,3.23579125,208.14,208.13,15.25374767]
[1759238913544,3.23579125,208.14,208.13,15.82374767]
[1759238914346,3.23579125,208.14,208.12,15.25374767]
[1759238914550,4.80399798,208.16,208.13,1.65815366]
[1759238914928,0.7,208.15,208.11,1.65815366]
[1759238915128,8.03877252,208.16,208.11,1.65815366]
[1759238915326,4.80399798,208.16,208.13,1.65815366]
[1759238916650,43.09849732,208.18,208.14,1.65815366]
[1759238917440,0.7,208.17,208.13,15.25374767]
[1759238917646,0.7,208.16,208.14,13.59559401]
[1759238917827,0.7,208.15,208.14,13.59559401]
[1759238918028,0.7,208.15,208.13,13.59559401]
[1759238918350,3.23477454,208.17,208.13,15.25374767]
[1759238918552,5.50399692,208.16,208.13,15.25374767]
[1759238919063,4.80399692,208.16,208.13,15.25374767]
[1759238919232,5.50399692,208.16,208.13,15.25374767]
[1759238921357,5.50399692,208.16,208.13,13.59559401]
[1759238921542,0.7,208.15,208.13,13.59559401]
[1759238921744,0.7,208.14,208.1,13.59559401]
[1759238922134,5.50453754,208.14,208.1,1.65815366]
[1759238923057,5.50453754,208.14,208.09,15.25374767]
[1759238923959,5.49475257,208.13,208.09,13.59559401]
[1759238924749,0.69,208.12,208.09,13.59559401]
[1759238925076,3.92477454,208.12,208.09,13.59559401]
[1759238925763,0.69,208.12,208.09,13.59559401]
[1759238927463,8.03952711,208.13,208.09,13.59559401]
[1759238927636,8.72952711,208.13,208.09,13.59559401]
[1759238929457,0.69,208.13,208.09,13.59559401]
[1759238930741,4.8035354,208.18,208.13,13.59559401]
[1759238930953,3.23215241,208.17,208.13,15.25374767]
[1759238931341,3.23215241,208.18,208.13,15.25374767]
[1759238931545,3.23215241,208.17,208.13,15.25374767]
[1759238931861,3.23215241,208.18,208.13,15.25374767]
[1759238932039,3.23215241,208.17,208.13,13.59559401]
[1759238932243,8.03610322,208.17,208.13,13.59559401]
[1759238932640,8.72610322,208.17,208.13,13.59559401]
[1759238932847,8.72610322,208.17,208.13,1.65815366]
[1759238933052,5.49395081,208.17,208.13,1.65815366]
[1759238933359,3.92215241,208.17,208.14,13.59559401]
[1759238933558,0.69,208.17,208.13,6.46284172]
[1759238933734,3.92215241,208.17,208.13,1.65815366]
[1759238933932,0.69,208.17,208.13,1.65815366]
[1759238934145,5.49386153,208.17,208.14,13.59559401]
[1759238934362,8.72570664,208.17,208.14,13.59559401]
[1759238934547,5.49386153,208.17,208.12,13.59559401]
[1759238934862,3.92184511,208.16,208.12,16.18459973]
[1759238935360,3.23184511,208.16,208.13,2.58900572]
[1759238935870,8.03596687,208.16,208.13,2.58900572]
[1759238936057,4.80412176,208.16,208.13,2.58900572]
[1759238936239,8.03596687,208.16,208.13,2.58900572]
[1759238936443,4.80412176,208.16,208.13,2.58900572]
[1759238936667,8.03596687,208.16,208.13,2.58900572]
[1759238936870,4.80412176,208.16,208.13,2.58900572]
[1759238937082,4.80412176,208.16,208.12,13.59559401]
[1759238937083,3.23184511,208.16,208.14,2.58900572]
[1759238937361,8.03561392,208.17,208.14,2.58900572]
[1759238937559,3.23184511,208.16,208.14,2.58900572]
[1759238937763,5.49376881,208.17,208.14,2.58900572]
[1759238938176,0.69,208.17,208.14,13.59559401]
[1759238939070,5.49378684,208.17,208.14,13.59559401]
[1759238939364,8.72563195,208.17,208.14,13.59559401]
[1759238939552,5.49378684,208.17,208.14,13.59559401]
[1759238939866,8.72563195,208.17,208.14,13.59559401]
[1759238940062,0.69,208.17,208.14,13.59559401]
[1759238940451,0.69,208.17,208.14,16.18459973]
[1759238940752,0.69,208.17,208.14,13.59559401]
[1759238941641,5.4939036,208.17,208.14,13.59559401]
[1759238942146,5.4939036,208.17,208.14,2.58900572]
[1759238942348,4.9319966,208.17,208.14,2.58900572]
[1759238942844,4.9319966,208.17,208.15,13.59559401]
[1759238944958,0.69,208.16,208.13,13.59559401]
[1759238945363,4.8039036,208.17,208.14,13.59559401]
[1759238945563,0.69,208.16,208.14,13.59559401]
[1759238946067,5.49422017,208.16,208.12,16.18459973]
[1759238946839,5.49352522,208.19,208.14,2.58900572]
[1759238947047,39.79352522,208.19,208.14,3.14900572]
[1759238947242,0.69,208.18,208.13,16.18459973]
[1759238947549,0.69,208.17,208.13,16.18459973]
[1759238948049,16.81082731,208.2,208.14,2.58900572]
[1759238948249,0.69,208.17,208.14,2.58900572]
[1759238950160,4.8035354,208.18,208.14,2.58900572]
[1759238950355,5.4935354,208.18,208.14,2.58900572]
[1759238950685,0.69,208.17,208.14,2.58900572]
[1759238951078,4.8035354,208.18,208.16,13.59559401]
[1759238951253,0.69,208.24,208.18,13.59559401]
[1759238951451,0.69,208.24,208.22,13.59559401]
[1759238951752,0.69,208.24,208.21,13.59559401]
[1759238951963,0.69,208.23,208.21,13.59559401]
[1759238952153,0.69,208.22,208.21,13.59559401]
[1759238952763,5.49261262,208.22,208.19,13.59559401]
[1759238952976,3.28900572,208.21,208.15,13.59559401]
[1759238953161,3.28900572,208.21,208.15,16.18459973]
[1759238953353,0.7,208.2,208.15,16.18459973]
[1759238953563,2.58900572,208.19,208.14,2.58900572]
[1759238953772,0.7,208.18,208.15,13.59559401]
[1759238953950,0.7,208.17,208.15,13.59559401]
[1759238954274,4.80376173,208.18,208.15,13.59559401]
[1759238954454,5.50376173,208.18,208.15,13.59559401]
[1759238954656,5.50376173,208.18,208.15,2.58900572]
[1759238954868,5.50376173,208.18,208.14,16.18459973]
[1759238956975,0.67,208.17,208.14,16.18459973]
[1759238957276,0.67,208.16,208.1,5.3652521]
[1759238957456,0.67,208.16,208.14,13.59559401]
[1759238959773,2.58900572,208.19,208.14,13.59559401]
[1759238959774,4.80422772,208.15,208.14,13.59559401]
[1759238960071,34.28,208.21,208.14,3.14900572]
[1759238960271,21.47,208.21,208.17,16.18459973]
[1759238960573,0.67,208.2,208.17,13.59559401]
[1759238961155,4.80330467,208.19,208.16,13.59559401]
[1759238961567,5.47330467,208.19,208.16,13.59559401]
[1759238962268,0.67,208.18,208.16,13.59559401]
[1759238962475,4.80330467,208.19,208.14,2.58900572]
[1759238962659,0.67,208.18,208.14,2.58900572]
[1759238963179,5.4736875,208.18,208.14,2.58900572]
[1759238963486,5.4736875,208.18,208.14,3.14900572]
[1759238963487,4.8036875,208.18,208.14,3.14900572]
[1759238964071,5.4736875,208.18,208.14,2.58900572]
[1759238964272,0.67,208.17,208.13,16.18459973]
[1759238964468,4.8036875,208.18,208.13,16.74459973]
[1759238964671,5.4736875,208.18,208.14,2.58900572]
[1759238965959,4.8036875,208.18,208.13,16.74459973]
[1759238966167,5.47386367,208.17,208.13,16.74459973]
[1759238966362,0.67,208.24,208.16,2.58900572]
[1759238966671,0.67,208.27,208.23,2.58900572]
[1759238966983,0.67,208.26,208.23,13.59559401]
[1759238967157,0.67,208.25,208.23,13.59559401]
[1759238968176,0.67,208.27,208.23,2.58900572]
[1759238968380,0.67,208.26,208.23,2.58900572]
[1759238970165,0.67,208.26,208.24,13.59559401]
[1759238970781,0.67,208.25,208.24,13.59559401]
[1759238971190,4.8018042,208.26,208.24,13.59559401]
[1759238971368,5.4718042,208.26,208.24,13.59559401]
[1759238971682,0.67,208.25,208.24,13.59559401]
[1759238974386,5.47192076,208.25,208.22,2.58900572]
[1759238974589,0.67,208.24,208.21,16.18459973]
[1759238974884,2.58900572,208.23,208.18,13.59559401]
[1759238975067,0.67,208.22,208.18,13.59559401]
[1759238975384,0.67,208.21,208.18,13.59559401]
[1759238975557,0.67,208.21,208.18,2.58900572]
[1759238975967,5.47292199,208.21,208.18,2.58900572]
[1759238976168,5.47292199,208.21,208.16,18.39958774]
[1759238976384,5.47292199,208.21,208.18,2.58900572]
[1759238976972,5.47292199,208.21,208.18,13.59559401]
[1759238976973,0.67,208.2,208.18,13.59559401]
[1759238977210,0.67,208.19,208.18,13.59559401]
[1759238977691,0.67,208.19,208.16,13.59559401]
[1759238977984,5.47340092,208.19,208.16,13.59559401]
[1759238978181,0.67,208.24,208.18,16.18459973]
[1759238978367,0.67,208.24,208.21,2.58900572]
[1759238978568,0.67,208.23,208.21,2.58900572]
[1759238979092,0.67,208.23,208.2,2.58900572]
[1759238979787,5.4725316,208.23,208.2,2.58900572]
[1759238980093,39.04210588,208.25,208.22,13.59559401]
[1759238980263,4.80164076,208.27,208.25,13.59559401]
[1759238980466,5.47164076,208.27,208.25,13.59559401]
[1759238983389,4.80122911,208.28,208.25,13.59559401]
[1759238983581,0.7,208.27,208.25,13.59559401]
[1759238983966,4.80100544,208.29,208.25,13.59559401]
[1759238984168,4.80053766,208.31,208.27,13.59559401]
[1759238984564,5.50053766,208.31,208.27,13.59559401]
[1759238985084,5.50053766,208.31,208.28,2.58900572]
[1759238985469,34.34,208.32,208.31,13.59559401]
[1759238985470,0.1,208.32,208.31,13.59559401]
[1759238985796,5.60030721,208.32,208.29,2.58900572]
[1759238986094,0.7,208.31,208.29,13.59559401]
[1759238987287,4.90030721,208.32,208.29,13.59559401]
[1759238987493,5.60030721,208.32,208.29,13.59559401]
[1759238987678,5.60030721,208.32,208.29,2.58900572]
[1759238987886,4.90030721,208.32,208.29,2.58900572]
[1759238989003,0.8,208.32,208.29,2.58900572]
[1759238989292,4.90033824,208.32,208.29,2.58900572]
[1759238989499,5.60033824,208.32,208.29,2.58900572]
[1759238990082,4.90033824,208.32,208.25,14.15559401]
[1759238990289,0.7,208.31,208.25,18.95741452]
[1759238990480,0.7,208.31,208.29,13.59559401]
[1759238991377,0.7,208.3,208.28,13.59559401]
[1759238991697,0.7,208.29,208.27,13.59559401]
[1759238993098,4.80091672,208.3,208.27,13.59559401]
[1759238993780,4.80091672,208.3,208.27,16.18459973]
[1759238994582,5.60048119,208.32,208.27,16.18459973]